[Event "21st RLP-Seniors Open 2024"]
[Site "Altenkirchen Ww"]
[Date "2024.09.03"]
[Round "1.1"]
[White "Boidman, Yuri"]
[Black "Hoefer, Heijo"]
[Result "1-0"]
[Annotator "TA"]
[ECO "E76"]
[WhiteElo "2245"]
[BlackElo "1891"]
[PlyCount "63"]
[EventDate "2024.09.02"]
[EventType "swiss"]
[EventCountry "GER"]
[SourceTitle "playchess.com"]
[Source "ChessBase"]
[SourceQuality "1"]
[TimeControl "40/5400+30:1800+30"]

{[%evp 15,62,19,21,10,67,52,61,59,58,51,128,130,129,121,155,139,209,-914,93,-869,245,165,168,165,234,217,196,208,216,202,274,268,255,245,400,388,473,467,448,456,456,455,29992,4496,29993,29994,29994,29995,29999]} 1. e4 {[%emt 0:00:06]} c6 {[%emt 0:00:10]} 2. c4 {[%emt 0:00:06]} g6 {[%emt 0:01:01]} 3. d4 {[%emt 0:00:14]} Bg7 {[%emt 0:00:47]} 4. Nc3 {[%emt 0:00:12]} d6 {[%emt 0:00:48]} 5. f4 {[%emt 0:01:53]} e5 {[%emt 0:01:20]} 6. fxe5 {[%emt 0:01:15]} dxe5 {[%emt 0:00:33]} 7. d5 {[%emt 0:00:07]} Nf6 {[%emt 0:01:46]} 8. Nf3 {[%emt 0:00:11]} O-O {[%emt 0:02:09]} 9. Bd3 {[%emt 0:00:21]} Bg4 {[%emt 0:02:24]} ({Black should try} 9... Na6 $11) 10. O-O $14 {[%emt 0:00:15]} Na6 {[%emt 0:01:00]} 11. Be3 {[%emt 0:00:37] White is slightly better.} Rc8 {[%emt 0:03:32]} 12. Rc1 {[%emt 0:02:17]} c5 {[%emt 0:06:47]} (12... cxd5 $14 13. cxd5 (13. Bxa7 dxc4 14. Be2 Qe7 $17) (13. exd5 $2 e4 $19) (13. Nxd5 Nc5 $11) 13... Nc5) 13. a3 $16 {[%emt 0:01:19]} b6 {[%emt 0:05:14]} 14. Qa4 {[%emt 0:02:37]} Bxf3 {[%emt 0:02:32]} 15. Rxf3 {[%emt 0:00:57]} Nb8 {[%emt 0:02:00] [#]} (15... Nc7 $16 16. Rcf1 (16. Qxa7 Ng4 $16) 16... Ra8) 16. Qa5 $4 {[%emt 1:26:03][%mdl 8192]} a6 $2 {[#]} (16... bxa5 $19 17. Bg5 Qb6) 17. Qxa6 $2 {[%emt 0:00:00][%mdl 8192] White is more active.} Nbd7 $4 {[%emt 0:01:59][%mdl 8192]} (17... Nxa6 $19 {avoids the disaster.} 18. Bg5 h6) 18. Qa4 {[%emt 0:00:00] Black is weak on the light squares} Ng4 {[%emt 0:02:01]} 19. Bd2 {[%emt 0:00:00]} Bh6 {[%emt 0:06:05]} (19... f5 $142 20. h3 (20. exf5 Qh4 $11) 20... Nh6 21. Bxh6 Bxh6) 20. Qc2 {[%emt 0:00:00]} Qh4 {[%emt 0:07:12]} 21. h3 {[%emt 0:00:00]} Bxd2 {[%emt 0:00:32]} 22. Qxd2 {[%emt 0:00:00]} Nh6 {[%emt 0:00:33]} 23. Rcf1 {[%emt 0:00:00]} Kg7 {[%emt 0:01:11]} 24. Nb5 {[%emt 0:00:00]} f5 $2 {[%emt 0:02:32]} (24... f6 {keeps fighting.} 25. Bc2 Nf7) 25. exf5 $18 {[%emt 0:00:00]} gxf5 {[%emt 0:01:17]} 26. Bxf5 {[%emt 0:00:00]} Nxf5 {[%emt 0:00:52]} 27. Rxf5 {[%emt 0:00:00]} Rxf5 {[%emt 0:01:25]} 28. Rxf5 {[%emt 0:00:00]} Qxc4 {[%emt 0:00:31]} (28... Rf8 $18) 29. Qg5+ {[%emt 0:00:00]} Kh8 {[%emt 0:00:23]} 30. Nd6 {[%emt 0:00:00][%csl LRc4,LRc8][%cal Rd6f7] White mates.} Qd4+ {[%emt 0:01:39]} 31. Kh2 {[%emt 0:00:00][%cal Rd6f7]} Rg8 {[%emt 0:00:28]} 32. Nf7# {[%emt 0:00:00] Weighted Error Value: White=0.64/Black=1.04.  Loses game:     	White=1     	---        Missed win:     	White=1     	Black=1      Mistake:       	---       	Black=6      Inaccurate:     	White=1     	Black=2      OK:         	White=8     	Black=3      Best:        	White=2     	---} 1-0

[Event "21st RLP-Seniors Open 2024"]
[Site "Altenkirchen Ww"]
[Date "2024.09.03"]
[Round "1.2"]
[White "Bigott, Martin"]
[Black "Rooze, Jan"]
[Result "0-1"]
[Annotator "TA"]
[ECO "D02"]
[WhiteElo "1888"]
[BlackElo "2235"]
[PlyCount "66"]
[EventDate "2024.09.02"]
[EventType "swiss"]
[EventCountry "GER"]
[SourceTitle "playchess.com"]
[Source "ChessBase"]
[SourceQuality "1"]
[TimeControl "40/5400+30:1800+30"]

{[%evp 12,66,0,-16,-3,-24,-20,-25,-22,-22,-8,-19,0,-9,-2,-13,-6,-9,-16,-21,-20,-32,-35,-39,-37,-40,-37,-40,-27,-32,-39,-73,-67,-97,-97,-132,-138,-181,-179,-175,-191,-194,-187,-223,-216,-267,-279,-321,-349,-344,-365,-347,-351,-1191,-1175,-1077,-1070]} 1. d4 {[%emt 0:00:06]} Nf6 {[%emt 0:00:05]} 2. g3 {[%emt 0:00:20]} c5 {[%emt 0:01:01]} 3. c3 {[%emt 0:00:30]} e6 {[%emt 0:00:30]} 4. Bg2 {[%emt 0:00:06]} d5 {[%emt 0:00:13]} 5. Nf3 {[%emt 0:01:07]} Nc6 {[%emt 0:00:06]} 6. O-O {[%emt 0:00:23]} Be7 {[%emt 0:01:49]} 7. Bg5 {[%emt 0:02:21]} O-O {[%emt 1:30:16]} 8. Nbd2 {[%emt 0:07:01]} cxd4 {[%emt 0:00:00]} 9. Nxd4 {[%emt 0:01:14]} Bd7 {[%emt 0:00:00] Black has an edge.} 10. N2f3 {[%emt 0:02:45]} h6 {[%emt 0:00:00]} 11. Bf4 {[%emt 0:01:21]} Ne4 {[%emt 0:00:00]} 12. Nxc6 {[%emt 0:06:28]} bxc6 {[%emt 0:00:00]} 13. Nd2 {[%emt 0:01:19]} f5 {[%emt 0:00:00]} 14. Nxe4 {[%emt 0:00:37]} fxe4 {[%emt 0:00:00]} 15. Kh1 {[%emt 0:08:25]} Bf6 {[%emt 0:00:00]} 16. f3 {[%emt 0:01:43]} e5 {[%emt 0:00:00]} 17. Bd2 {[%emt 0:00:43]} exf3 {[%emt 0:00:00]} 18. exf3 {[%emt 0:00:24]} Rb8 {[%emt 0:00:00]} 19. b3 {[%emt 0:00:16]} Qb6 {[%emt 0:00:00]} 20. Qe2 {[%emt 0:04:41]} Rbe8 {[%emt 0:00:00]} 21. Be3 {[%emt 0:04:43]} d4 {[%emt 0:00:00]} 22. Bg1 {[%emt 0:00:49]} c5 {[%emt 0:00:00]} 23. Qd3 {[%emt 0:03:19]} Bb5 {[%emt 0:00:00] Black is more active.} 24. c4 {[%emt 0:00:03]} Bc6 {[%emt 0:00:00]} 25. Rae1 {[%emt 0:03:31]} Qb7 {[%emt 0:00:00]} 26. Re2 {[%emt 0:00:30]} Bd8 {[%emt 0:00:00]} 27. h4 {[%emt 0:03:22]} Re7 {[%emt 0:00:00]} 28. Kh2 {[%emt 0:00:46]} Bc7 {[%emt 0:00:00]} 29. Kh3 {[%emt 0:06:47] [#]} e4 $1 {[%emt 0:00:00][%mdl 512]} 30. fxe4 {[%emt 0:00:39]} Rxf1 {[%emt 0:00:00]} 31. Bxf1 {[%emt 0:00:03]} Bxe4 {[%emt 0:00:00]} 32. Qd2 {[%emt 0:00:33]} (32. Rxe4 Qxe4 33. Qxe4 Rxe4 34. Bf2) 32... Qc8+ $19 {[%emt 0:00:00]} 33. Kh2 {[%emt 0:03:29]} Qg4 {[%emt 0:00:00][%csl LRg3,LRh4] Weighted Error Value: White=0.30/Black=0.04 (flawless) .  Mistake:       	White=1     	---        Inaccurate:     	White=4     	---        OK:         	White=5     	Black=14     Best:        	White=1     	Black=1} 0-1

[Event "21st RLP-Seniors Open 2024"]
[Site "Altenkirchen Ww"]
[Date "2024.09.03"]
[Round "1.3"]
[White "Meyer, Armin"]
[Black "Fasel, Joerg"]
[Result "1-0"]
[Annotator "TA"]
[ECO "A11"]
[WhiteElo "2195"]
[BlackElo "1886"]
[PlyCount "75"]
[EventDate "2024.09.02"]
[EventType "swiss"]
[EventCountry "GER"]
[SourceTitle "playchess.com"]
[Source "ChessBase"]
[SourceQuality "1"]
[TimeControl "40/5400+30:1800+30"]

{[%evp 9,75,3,0,0,4,-4,-1,-11,4,0,0,0,0,-16,0,0,-7,-20,-11,-31,-8,-12,0,-16,18,0,18,0,40,0,37,-24,-16,0,33,28,27,20,31,21,68,77,80,81,143,134,136,140,141,115,144,131,152,146,145,147,133,145,208,201,383,388,477,477,462,473,449,452]} 1. Nf3 {[%emt 0:00:06]} Nf6 {[%emt 0:00:17]} 2. c4 {[%emt 0:00:16]} c6 {[%emt 0:01:14]} 3. Nc3 {[%emt 0:00:32]} d5 {[%emt 0:00:35]} 4. e3 {[%emt 0:00:29]} a6 {[%emt 0:04:20]} 5. h3 {[%emt 0:02:14]} Nbd7 {[%emt 0:03:23]} 6. d4 {[%emt 0:06:48]} e6 {[%emt 0:02:30]} 7. a4 {[%emt 0:06:39]} Bb4 {[%emt 0:05:08]} 8. Bd2 {[%emt 0:00:20] The position is equal.} c5 {[%emt 0:08:49]} 9. cxd5 {[%emt 0:04:23]} exd5 {[%emt 0:03:08]} 10. dxc5 {[%emt 0:04:08]} Nxc5 {[%emt 0:05:50]} 11. Qc2 {[%emt 0:02:14]} Be6 {[%emt 0:07:44]} (11... O-O $5) 12. Be2 {[%emt 0:08:35]} Rc8 {[%emt 0:02:39]} 13. Qd1 {[%emt 0:01:23]} O-O {[%emt 0:06:41]} 14. Nd4 {[%emt 0:02:26]} Qa5 {[%emt 0:02:45]} 15. O-O {[%emt 0:00:59]} Rfd8 {[%emt 0:05:13]} 16. Qe1 {[%emt 0:03:26][%cal Oc3e4]} Qb6 {[%emt 0:05:49]} 17. f3 {[%emt 0:09:09][%cal Oa4a5]} Ncd7 {[%emt 0:07:57][%cal Bc5d7,Bd7b8,Bb8c6][%mdl 32]} 18. f4 {[%emt 0:08:02] [#] Threatens to win with f5.} Nb8 {[%emt 0:06:22]} (18... Nc5 $5) 19. Bf3 {[%emt 0:04:37]} (19. a5 $5 Qd6 (19... Bxa5 $2 20. Rxa5 Qxa5 21. Ne4 $18) 20. Ne4 (20. Ncb5 Bxd2 21. Nxd6 Bxe1 $11) 20... Nxe4 21. Bxb4 $14) 19... Nc6 {[%emt 0:03:15]} 20. Nce2 {[%emt 0:00:25]} (20. a5 $1 $14 Qc7 (20... Bxa5 21. Nxc6 Rxc6 22. Rxa5 $16) (20... Nxa5 $2 {perishes.} 21. Na4 $18) 21. Nxc6 bxc6 22. Na4 (22. Nxd5 Bxd5 23. Bxb4 Bxf3 $14)) 20... Bxd2 {[%emt 0:02:09]} 21. Qxd2 {[%emt 0:00:11]} Nb4 {[%emt 0:01:06]} 22. a5 {[%emt 0:05:29]} Qd6 {[%emt 0:00:32]} 23. Ra4 {[%emt 0:01:37]} Nc6 {[%emt 0:02:04]} 24. Nxc6 {[%emt 0:00:32]} Qxc6 {[%emt 0:00:19]} (24... bxc6 $11 25. b4 Ne4 26. Bxe4 dxe4 27. Qxd6 Rxd6) 25. Rd4 $14 {[%emt 0:01:33][%cal Oe3e4]} Qc2 {[%emt 0:01:33]} 26. Rd1 {[%emt 0:02:58][%cal Oe3e4]} Rc5 {[%emt 0:01:17] [#]} (26... Re8 $142) 27. b4 $1 $36 {[%emt 0:04:01][%mdl 2048] White has strong initiative.} Qxd2 {[%emt 0:00:16]} 28. R1xd2 {[%emt 0:00:11]} Rc7 {[%emt 0:00:34]} 29. g4 {[%emt 0:00:41][%cal Bg2g4,Bg4g5][%mdl 32]} g6 {[%emt 0:00:42]} 30. g5 {[%emt 0:00:42]} Ne8 {[%emt 0:03:52][%cal Oe8d6]} 31. Bxd5 {[%emt 0:00:26]} Bxd5 {[%emt 0:04:13]} 32. Rxd5 {[%emt 0:01:03]} Rxd5 {[%emt 0:00:17]} 33. Rxd5 {[%emt 0:00:11] KRN-KRN} Re7 {[%emt 0:00:03]} (33... Kf8 $16 34. Kf2 Ke7) 34. Kf2 $18 {[%emt 0:00:24] aiming for Rd8.} Nc7 $2 {[%emt 0:00:34]} (34... Kf8 {keeps fighting.} 35. Nd4 Rc7) 35. Rd8+ {[%emt 0:00:27]} Kg7 {[%emt 0:00:06]} 36. Nc3 {[%emt 0:01:30] White is clearly winning.} f6 {[%emt 0:00:59]} 37. gxf6+ {[%emt 0:00:18]} Kxf6 {[%emt 0:00:03]} 38. Rb8 {[%emt 0:00:14] Weighted Error Value: White=0.09 (flawless) /Black=0.25 (precise) .  Mistake:       	White=1     	Black=4      Inaccurate:     	White=1     	Black=4      OK:         	White=10    	Black=6      Best:        	White=3     	---        Strong:       	White=1     	---} 1-0

[Event "21st RLP-Seniors Open 2024"]
[Site "Altenkirchen Ww"]
[Date "2024.09.03"]
[Round "1.4"]
[White "Supplieth, Peter"]
[Black "Heck, Norbert"]
[Result "0-1"]
[Annotator "NA RC"]
[ECO "B06"]
[WhiteElo "1882"]
[BlackElo "2112"]
[PlyCount "64"]
[EventDate "2024.09.02"]
[EventType "swiss"]
[EventCountry "GER"]
[SourceTitle "playchess.com"]
[Source "ChessBase"]
[SourceQuality "1"]
[TimeControl "40/5400+30:1800+30"]

{[%evp 8,64,59,32767,32767,32767,32767,4,10,3,6,12,9,-8,0,-7,0,-12,0,-4,0,0,0,0,0,-5,0,-4,0,0,0,0,0,-13,32767,32767,32767,32767,32767,32767,32767,32767,32767,32767,32767,32767,32767,32767,32767,32767,32767,-895,-628,-652,32767,-598,-622,-591,-683]} 1. e4 {[%emt 0:00:16]} g6 {[%emt 0:00:09]} 2. d4 {[%emt 0:00:37]} Bg7 {[%emt 0:00:06]} 3. Nf3 {[%emt 1:31:07]} d6 {[%emt 1:31:45]} 4. Bc4 {[%emt 0:00:00]} c6 {[%emt 0:00:00]} 5. c3 {[%emt 0:00:00]} Nf6 {[%emt 0:00:00]} 6. Qe2 {[%emt 0:00:00]} O-O {[%emt 0:00:00]} 7. Bg5 {[%emt 0:00:00] B06: Modern Defence.} d5 {[%emt 0:00:00]} (7... Nxe4 $5 8. Qxe4 d5 $11) 8. exd5 {[%emt 0:00:00]} cxd5 {[%emt 0:00:00]} 9. Bb3 {[%emt 0:00:00]} b6 {[%emt 0:00:00]} 10. Bc2 {[%emt 0:00:00]} Ba6 {[%emt 0:00:00]} 11. Bd3 {[%emt 0:00:00]} Bxd3 {[%emt 0:00:00]} 12. Qxd3 {[%emt 0:00:00]} Nc6 {[%emt 0:00:00]} 13. Nbd2 {[%emt 0:00:00]} Qd6 {[%emt 0:00:00]} 14. O-O {[%emt 0:00:00]} h6 {[%emt 0:00:00]} 15. Be3 {[%emt 0:00:00]} Ng4 {[%emt 0:00:00]} 16. h3 {[%emt 0:00:00]} Nxe3 {[%emt 0:00:00]} 17. Qxe3 {[%emt 0:00:00]} Rfe8 {[%emt 0:00:00]} 18. Rfe1 {[%emt 0:00:00]} e5 {[%emt 0:00:00]} 19. dxe5 {[%emt 0:00:00]} Nxe5 {[%emt 0:00:00]} 20. Qf4 {[%emt 0:00:00]} Nxf3+ {[%emt 0:00:00]} 21. Qxf3 {[%emt 0:00:00]} d4 {[%emt 0:00:00]} 22. Qd3 {[%emt 0:00:00]} Red8 {[%emt 0:00:00]} 23. Nf3 {[%emt 0:00:00]} dxc3 {[%emt 0:00:00]} 24. Re8+ {[%emt 0:00:00]} Rxe8 {[%emt 0:00:00]} 25. Qxd6 {[%emt 0:00:00]} cxb2 {[%emt 0:00:00]} 26. Rd1 {[%emt 0:00:00]} Rac8 {[%emt 0:00:00]} 27. Kh2 {[%emt 0:00:00]} Rc1 {[%emt 0:00:00]} 28. Qd2 {[%emt 0:00:00]} Rec8 {[%emt 0:00:00]} 29. Qd3 {[%emt 0:00:00]} Rxd1 {[%emt 0:00:00]} (29... b1=R $2 30. Rxc1 Rbxc1 (30... Rcxc1 31. Qd8+ Kh7 32. Qe7 $15) 31. Nd2 $19) 30. Qxd1 {[%emt 0:00:00]} Rc1 {[%emt 0:00:00]} 31. Qd8+ {[%emt 0:00:00]} Kh7 {[%emt 0:00:00]} 32. Nd2 $19 {[%emt 0:00:00]} Rd1 {[%emt 0:00:00]} 0-1

[Event "21st RLP-Seniors Open 2024"]
[Site "Altenkirchen Ww"]
[Date "2024.09.03"]
[Round "1.5"]
[White "Compagnie, Luc"]
[Black "Kuhn, Andreas"]
[Result "1/2-1/2"]
[Annotator "NA RC"]
[ECO "A13"]
[WhiteElo "2096"]
[BlackElo "2102"]
[PlyCount "83"]
[EventDate "2024.09.02"]
[EventType "swiss"]
[EventCountry "GER"]
[SourceTitle "playchess.com"]
[Source "ChessBase"]
[SourceQuality "1"]
[TimeControl "40/5400+30:1800+30"]

1. c4 {[%emt 0:00:02]} e6 {[%emt 0:00:32]} 2. Nf3 {[%emt 0:00:06]} Nf6 {[%emt 0:02:30]} 3. g3 {[%emt 0:00:07]} d5 {[%emt 0:00:22]} 4. Bg2 {[%emt 0:00:06]} dxc4 {[%emt 0:00:05]} 5. Qa4+ {[%emt 0:00:05]} Bd7 {[%emt 0:00:41]} 6. Qxc4 {[%emt 0:00:06] A13: English Opening: 1...e6.} c5 {[%emt 0:00:46]} 7. Qc2 {[%emt 0:00:06]} Nc6 {[%emt 0:01:01]} 8. O-O {[%emt 0:01:27]} Be7 {[%emt 0:00:53]} 9. b3 {[%emt 0:01:29]} O-O {[%emt 0:04:39]} 10. Bb2 {[%emt 0:00:06]} Rc8 {[%emt 0:03:35]} 11. Ne5 {[%emt 0:08:42]} Nxe5 {[%emt 0:00:37]} 12. Bxe5 {[%emt 0:00:05]} Bc6 {[%emt 0:08:38]} 13. Bxc6 {[%emt 0:00:08]} Rxc6 {[%emt 0:00:01]} 14. Qb2 {[%emt 0:03:17]} Qd5 {[%emt 0:08:57]} 15. Na3 {[%emt 0:02:19]} Rd8 {[%emt 0:01:35]} 16. d3 {[%emt 0:04:17]} Ne8 {[%emt 0:03:36]} 17. Nc4 {[%emt 0:02:10]} Bf6 {[%emt 0:06:15]} 18. a4 {[%emt 0:00:38]} Bxe5 {[%emt 0:04:12]} 19. Qxe5 {[%emt 0:13:45]} f6 {[%emt 0:05:19]} 20. Qc3 {[%emt 0:04:01]} Nc7 {[%emt 0:05:02]} 21. Rfc1 {[%emt 0:13:07]} Na6 {[%emt 0:02:26]} 22. Nd2 {[%emt 0:07:09]} Rdc8 {[%emt 0:05:03]} 23. Qb2 {[%emt 0:03:08]} Qd4 {[%emt 0:02:16]} 24. Rc3 {[%emt 0:00:14]} Nb4 {[%emt 0:06:28]} 25. Nf3 {[%emt 0:00:08]} Qd6 {[%emt 0:00:55]} 26. Rc4 {[%emt 0:00:17]} Nd5 {[%emt 0:06:55]} 27. Rac1 {[%emt 0:01:54]} e5 {[%emt 0:00:39]} 28. Nd2 {[%emt 0:00:39]} b6 {[%emt 0:00:25]} 29. Rh4 {[%emt 0:06:10]} g6 {[%emt 0:01:56]} 30. Ne4 {[%emt 0:05:18]} Qe7 {[%emt 0:00:28]} 31. Nc3 {[%emt 0:01:02]} Nxc3 {[%emt 0:01:09]} 32. Qxc3 {[%emt 0:00:23]} a5 {[%emt 0:02:28]} 33. Rc4 {[%emt 0:01:41]} Qd6 {[%emt 0:01:04]} 34. h4 {[%emt 0:03:36]} h5 {[%emt 0:00:13]} 35. Qd2 {[%emt 0:02:00]} Kg7 {[%emt 0:00:47]} (35... Rd8 $5) 36. Qe3 {[%emt 0:00:06]} (36. e3 $11) 36... Qe6 {[%emt 0:01:59]} 37. Qf3 $11 {[%emt 0:00:38]} Qd7 {[%emt 0:03:11]} 38. Qg2 {[%emt 0:01:59]} f5 {[%emt 0:01:43]} 39. R1c3 {[%emt 0:00:36]} Rd6 {[%emt 0:00:53]} 40. Qf3 {[%emt 0:01:55]} Rd8 {[%emt 0:02:59]} 41. Qe3 {[%emt 0:30:13]} Qe6 {[%emt 0:30:42]} 42. Qf3 {[%emt 0:01:11]} 1/2-1/2

[Event "21st RLP-Seniors Open 2024"]
[Site "Altenkirchen Ww"]
[Date "2024.09.03"]
[Round "1.6"]
[White "Schwab, Wolfgang"]
[Black "Geyer, Bernhard"]
[Result "0-1"]
[Annotator "NA RC"]
[ECO "A08"]
[WhiteElo "1873"]
[BlackElo "2096"]
[PlyCount "124"]
[EventDate "2024.09.02"]
[EventType "swiss"]
[EventCountry "GER"]
[SourceTitle "playchess.com"]
[Source "ChessBase"]
[SourceQuality "1"]
[TimeControl "40/5400+30:1800+30"]

1. Nf3 {[%emt 0:00:13]} d5 {[%emt 0:00:34]} 2. g3 {[%emt 0:00:16]} c5 {[%emt 0:00:55]} 3. d3 {[%emt 0:01:35]} Nc6 {[%emt 0:00:41]} 4. Bg2 {[%emt 0:00:35]} e5 {[%emt 0:04:08]} 5. O-O {[%emt 0:01:44]} Be7 {[%emt 0:09:57]} 6. Nbd2 {[%emt 0:02:06]} Nf6 {[%emt 0:03:30]} 7. e4 {[%emt 0:02:10]} d4 {[%emt 0:00:45]} 8. h3 {[%emt 0:06:43] A08: King's Indian Attack.} O-O {[%emt 0:00:27]} 9. Nc4 {[%emt 0:01:02]} Qc7 {[%emt 0:00:25]} 10. Nh2 {[%emt 0:04:46]} (10. Nh4 $11 {keeps the balance.}) 10... b5 {[%emt 0:04:48]} 11. Nd2 {[%emt 0:00:21]} Rb8 {[%emt 0:00:09]} 12. Ndf3 {[%emt 0:05:54]} Ne8 {[%emt 0:02:35]} 13. Ng5 {[%emt 0:07:03]} h6 {[%emt 0:01:28]} 14. Ngf3 {[%emt 0:00:16]} f5 {[%emt 0:05:11]} 15. exf5 {[%emt 0:05:55]} Bxf5 {[%emt 0:00:38]} 16. g4 {[%emt 0:00:48]} Bh7 {[%emt 0:03:55]} 17. g5 {[%emt 0:00:37]} hxg5 {[%emt 0:02:48]} 18. Nxg5 {[%emt 0:01:35]} Bxg5 {[%emt 0:01:43]} 19. Bd5+ {[%emt 0:00:54]} Kh8 {[%emt 0:00:29]} 20. Bxg5 {[%emt 0:00:25]} Nf6 {[%emt 0:00:25]} 21. Bg2 {[%emt 0:00:46]} Rbe8 {[%emt 0:01:49]} 22. Bh4 {[%emt 0:02:33]} (22. Re1 $15 {should be considered.}) 22... e4 {[%emt 0:01:16]} 23. Bg3 {[%emt 0:06:12]} (23. Bxf6 $1 $15 gxf6 (23... Rxf6 24. Bxe4 Rh6 25. Ng4 $11) 24. dxe4) 23... Qd7 {[%emt 0:00:49]} 24. Qd2 {[%emt 0:03:43]} exd3 {[%emt 0:00:56]} 25. cxd3 $19 {[%emt 0:00:16] [#]} Nb4 $1 {[%emt 0:00:13]} 26. Qg5 {[%emt 0:03:51]} Nxd3 {[%emt 0:00:47]} 27. Rad1 {[%emt 0:01:47]} c4 {[%emt 0:01:06]} 28. Qh4 {[%emt 0:02:20]} Ne4 {[%emt 0:06:15]} 29. Nf3 {[%emt 0:02:57]} Qd8 {[%emt 0:11:19]} 30. Qg4 {[%emt 0:06:55]} Qf6 {[%emt 0:05:19]} 31. Qd7 {[%emt 0:05:19]} a6 {[%emt 0:06:07]} 32. Bh4 {[%emt 0:02:22]} Qd6 {[%emt 0:03:49]} 33. Qa7 $2 {[%emt 0:07:31]} (33. Qxd6 Nxd6 34. Nxd4) 33... Nec5 {[%emt 0:01:48]} 34. Bg3 {[%emt 0:00:51]} Qd7 $2 {[%emt 0:05:28]} (34... Qf6 35. Qc7 Be4) 35. Qxd7 {[%emt 0:03:49]} Nxd7 {[%emt 0:00:05]} 36. Nxd4 {[%emt 0:00:13]} Nxb2 {[%emt 0:00:11]} 37. Rd2 {[%emt 0:03:16]} c3 {[%emt 0:00:19]} 38. Re2 {[%emt 0:03:04]} Rxe2 {[%emt 0:01:38]} 39. Nxe2 {[%emt 0:00:07]} Bd3 {[%emt 0:00:36]} 40. Nxc3 {[%emt 0:03:09]} Bxf1 {[%emt 0:00:10]} 41. Kxf1 {[%emt 0:30:12]} Rc8 {[%emt 0:32:11]} 42. Ne2 {[%emt 0:03:11]} Nc5 {[%emt 0:02:19]} 43. Bf3 {[%emt 0:00:00]} Nbd3 {[%emt 0:00:00]} 44. Bg4 {[%emt 0:00:00]} Re8 {[%emt 0:00:00]} 45. Bh5 {[%emt 0:00:00]} Re4 {[%emt 0:00:00]} 46. Bf3 {[%emt 0:00:00]} Ra4 {[%emt 0:00:00]} 47. Bd5 {[%emt 0:00:00]} Ne4 {[%emt 0:00:00]} 48. Bc7 {[%emt 0:00:00]} Nd2+ {[%emt 0:00:00]} 49. Kg2 {[%emt 0:00:00]} Nc4 {[%emt 0:00:00]} 50. Be4 {[%emt 0:00:00]} Ne1+ {[%emt 0:00:00]} 51. Kh2 {[%emt 0:00:00]} Rxa2 {[%emt 0:00:00]} 52. Ng3 {[%emt 0:00:00]} Rxf2+ {[%emt 0:00:00]} 53. Kg1 {[%emt 0:00:00]} Rf7 {[%emt 0:00:00]} 54. Bb8 {[%emt 0:00:00]} Nf3+ {[%emt 0:00:00]} 55. Kh1 {[%emt 0:00:00]} Nfe5 {[%emt 0:00:00]} 56. Nf5 {[%emt 0:00:00]} a5 {[%emt 0:00:00]} 57. Nd6 {[%emt 0:00:04]} Nxd6 {[%emt 0:00:00]} 58. Bxd6 {[%emt 0:00:10]} Nc4 {[%emt 0:00:00]} 59. Bg3 {[%emt 0:00:56]} a4 {[%emt 0:00:00]} 60. Bc6 {[%emt 0:00:47]} Rf1+ {[%emt 0:00:00]} 61. Kg2 {[%emt 0:00:12]} Rb1 {[%emt 0:00:00]} 62. Kf2 {[%emt 0:02:01]} a3 {[%emt 0:00:00]} 0-1

[Event "21st RLP-Seniors Open 2024"]
[Site "Altenkirchen Ww"]
[Date "2024.09.03"]
[Round "1.7"]
[White "Siebenhaar, Erich"]
[Black "Duijker, Bert"]
[Result "1-0"]
[Annotator "NA RC"]
[ECO "A01"]
[WhiteElo "2087"]
[BlackElo "1872"]
[PlyCount "47"]
[EventDate "2024.09.02"]
[EventType "swiss"]
[EventCountry "GER"]
[SourceTitle "playchess.com"]
[Source "ChessBase"]
[SourceQuality "1"]
[TimeControl "40/5400+30:1800+30"]

{[%evp 10,39,-38,-62,-76,-57,-12,-37,-16,-91,32,-2,9,-19,-19,-6,32767,32767,32767,32767,32767,32767,32767,32767,32767,32767,32767,-71,118,35,203,191]} 1. b3 {[%emt 0:00:32]} Nf6 {[%emt 0:00:54]} 2. Bb2 {[%emt 0:00:04]} e6 {[%emt 0:00:22]} 3. e3 {[%emt 0:00:08]} d5 {[%emt 0:01:04]} 4. g4 {[%emt 0:00:20]} h6 {[%emt 0:01:11]} 5. h4 {[%emt 0:00:12]} c5 {[%emt 0:01:10]} (5... Nc6 $17 6. Bb5 e5) 6. f4 {[%emt 0:00:14] A01: Nimzowitsch-Larsen Opening.} Nc6 {[%emt 0:02:17]} 7. Qf3 {[%emt 0:00:40]} Ne4 {[%emt 0:07:01]} (7... e5 $15 8. g5 Ne4) 8. d3 {[%emt 0:00:40]} Nd6 {[%emt 0:00:41]} 9. a3 {[%emt 0:00:54] [#]} ({White should try} 9. Nd2 $15) 9... Qa5+ {[%emt 0:04:19]} ({Better is} 9... Be7 $1 $17) 10. Nd2 {[%emt 0:01:39]} Bd7 {[%emt 0:04:23]} 11. O-O-O {[%emt 0:03:29]} (11. Qf2 $142) 11... O-O-O {[%emt 0:04:55]} 12. Ne2 {[%emt 0:03:53]} Nb5 {[%emt 0:08:50]} 13. a4 {[%emt 0:03:31]} Nc7 {[%emt 0:02:33]} 14. Bh3 {[%emt 0:00:49]} b5 {[%emt 0:02:00]} 15. axb5 {[%emt 0:12:13]} Qxb5 {[%emt 0:00:32]} 16. e4 {[%emt 0:03:20]} Nb4 {[%emt 0:05:21]} 17. Nc3 {[%emt 0:06:36]} Qb7 {[%emt 0:00:54]} 18. exd5 {[%emt 0:02:22]} Nbxd5 $16 {[%emt 0:03:02]} (18... exd5 $17 {keeps the pressure on.} 19. g5 Ne6) 19. Nxd5 {[%emt 0:00:23]} (19. Rhf1 $16) 19... Qxd5 {[%emt 0:03:16]} (19... exd5 $14 20. g5 d4) 20. Qf2 {[%emt 0:01:11]} Qb7 {[%emt 0:05:13]} 21. Nc4 {[%emt 0:01:34]} f6 {[%emt 0:05:54]} 22. g5 {[%emt 0:02:02]} hxg5 {[%emt 0:01:24]} 23. hxg5 {[%emt 0:00:22]} Be7 {[%emt 0:01:55]} 24. gxf6 {[%emt 0:00:09]} 1-0